Cogmind - Beta 14 @@@ ROGUE MODE // 2024.08.22 @ 18:21:43 Player: N.W.L Result: Destroyed by S-43 Plague with Heavy Machine Gun Performance ------------- Evolutions (7) 3500 Regions Visited (25) 5000 Robots Destroyed (292) 1460 Value Destroyed (17864) 17864 Prototype IDs (58) 1160 Alien Tech Used (0) 0 Bonus (18934) 18934 TOTAL SCORE: 47918 Bonus ------- Triggered Max Security 1000 High Alert Combat Kills 5312 Follower Combat Kills 6112 Entered Garrisons 1800 Used RIF Installer 5000 Aligned with FarCom 300 Scanned by Researcher 500 Friendly Fire -1090 Cogmind --------- Core Integrity 0/1300 Matter 300/300 Energy 99/100 System Corruption 31% Temperature Cool (0) Movement Core (50) Location -3/Testing Parts ------- > --- POWER (1) -------- (None) > --- PROPULSION (4) --- (None) > --- UTILITY (13) ----- (None) > --- WEAPON (3) ------- (None) > --- INVENTORY (5) ---- Light Antimatter Reactor SHELL Armor Relay Coupler [Hunter] (33) Peak State ------------ > --- POWER ------------ Reinforced Fission Core > --- PROPULSION ------- Biometal Heavy Treads Biometal Heavy Treads > --- UTILITY ---------- Experimental Heat Sink Experimental Cooling System Huge Storage Unit Experimental Core Analyzer Medium Regenerative Plating Medium Regenerative Plating Energy Mantle Experimental Hacking Suite Relay Coupler [NC] Relay Coupler [Swarmer] Relay Coupler [Duelist] Relay Coupler [Hunter] Relay Coupler [Behemoth] > --- WEAPON ----------- Advanced Variable Charge Gun Enhanced Nova Cannon Enhanced Nova Cannon > --- INVENTORY -------- Light Antimatter Reactor SHELL Armor Relay Coupler [Swarmer] Relay Coupler [Duelist] Relay Coupler [Sentry] Relay Coupler [Sentry] Relay Coupler [Specialist] Relay Coupler [Specialist] Relay Coupler [Hunter] Relay Coupler [Hunter] Relay Coupler [Heavy] Relay Coupler [Proto] Relay Coupler [Proto] Relay Coupler [Proto] Relay Coupler [Proto] Guided Plasma Cannon Enhanced Nova Cannon Helical Railgun Helical Railgun Micro-nuke Launcher Advanced Remote Datajack Advanced Remote Datajack Molecular Scythe [Rating: 159] Favorites ----------- Power Quantum Reactor Engine Reinforced Deuterium Engine Power Core Reinforced Fission Core Reactor Quantum Reactor Propulsion Light Treads Treads Light Treads Utility Relay Coupler [Behemoth] Device Experimental Heat Sink Storage Huge Storage Unit Processor Advanced Visual Processing Unit Hackware Relay Coupler [Behemoth] Protection Layered Heavy Armor Plating Weapon Gatling Laser Energy Gun Gatling Laser Energy Cannon Enhanced Nova Cannon Ballistic Gun Helical Railgun Ballistic Cannon Hardcell Cannon Launcher EMP Blaster Special Weapon Improved Remote Datajack Impact Weapon Hammer Slashing Weapon Molecular Scythe Special Melee Weapon Improved Datajack Build | -11 -10 -10 -10 -9 -8 -8 -8 -8 -7 -7 -7 -7 -6 -6 -6 -6 -5 -5 -5 -5 -4 -4 -3 -3 -3 ------- Run | Yrd Mat Min Exi Min Mat Gar Mat Gar Fac Gar Fac Gar Fac Was Fac Gar Fac Gar Fac Gar Fac Gar Res Gar Tes Slots Evolved 14 | . . . . . 4 . . . 2 . . . 2 . . . 2 . . . 2 . 2 . . Power . | . . . . . . . . . . . . . . . . . . . . . . . . . . Propulsion 2 | . . . . . 1 . . . . . . . 1 . . . . . . . . . . . . Utility 11 | . . . . . 2 . . . 2 . . . 1 . . . 2 . . . 2 . 2 . . Weapon 1 | . . . . . 1 . . . . . . . . . . . . . . . . . . . . Parts Attached 409 | 6 8 5 2 3 24 21 14 14 19 17 17 33 5 . 4 25 20 24 19 27 15 18 22 40 7 Power 15 | 1 1 1 . . 2 . 2 . . . . 1 . . . 1 2 1 . . . . . 3 . Engine 8 | 1 1 1 . . 2 . 2 . . . . . . . . 1 . . . . . . . . . Core 4 | . . . . . . . . . . . . . . . . . 2 . . . . . . 2 . Reactor 3 | . . . . . . . . . . . . 1 . . . . . 1 . . . . . 1 . Propulsion 49 | 2 . 1 . . 4 4 3 2 3 3 2 2 2 . 1 6 5 4 . . 2 . 1 2 . Treads 49 | 2 . 1 . . 4 4 3 2 3 3 2 2 2 . 1 6 5 4 . . 2 . 1 2 . Leg . | . . . . . . . . . . . . . . . . . . . . . . . . . . Wheel . | . . . . . . . . . . . . . . . . . . . . . . . . . . Hover . | . . . . . . . . . . . . . . . . . . . . . . . . . . Flight . | . . . . . . . . . . . . . . . . . . . . . . . . . . Utility 138 | 1 1 . . 1 9 9 . 6 11 4 3 7 2 . 1 9 5 8 12 14 5 6 7 14 3 Device 65 | . 1 . . 1 3 6 . 4 7 . 2 1 . . . 2 2 5 6 6 2 3 3 10 1 Storage 3 | 1 . . . . 1 . . . . . 1 . . . . . . . . . . . . . . Processor 8 | . . . . . 2 . . . 2 . . . . . . . . . 2 . . . 1 1 . Hackware 48 | . . . . . . 3 . 2 1 4 . 6 1 . 1 7 1 2 4 8 2 2 3 1 . Protection 14 | . . . . . 3 . . . 1 . . . 1 . . . 2 1 . . 1 1 . 2 2 Artifact . | . . . . . . . . . . . . . . . . . . . . . . . . . . Weapon 207 | 2 6 3 2 2 9 8 9 6 5 10 12 23 1 . 2 9 8 11 7 13 8 12 14 21 4 Energy Gun 41 | 1 . . . . 5 4 5 3 3 4 6 8 . . . . . . . . . . . 1 1 Energy Cannon 45 | . . . . . 1 . 2 1 . . 1 3 1 . 1 5 4 5 2 3 3 3 2 8 . Ballistic Gun 25 | 1 . . . . . . . . . . . 2 . . . . . 2 3 4 . 2 5 4 2 Ballistic Cannon 1 | . . . . . . . . . . . . 1 . . . . . . . . . . . . . Launcher 24 | . 3 3 . 2 1 2 1 1 . 2 . 1 . . . 2 1 . . 1 . 2 1 . 1 Special Weapon 47 | . . . 1 . . . . . . 2 3 4 . . . 2 3 4 2 5 5 4 5 7 . Impact Weapon 20 | . 3 . 1 . 2 1 1 1 2 1 2 3 . . 1 . . . . . . 1 1 . . Slashing Weapon 1 | . . . . . . . . . . . . . . . . . . . . . . . . 1 . Piercing Weapon . | . . . . . . . . . . . . . . . . . . . . . . . . . . Special Melee Weapon 3 | . . . . . . 1 . . . 1 . 1 . . . . . . . . . . . . . Unidentified Prototypes 18 | . . . . . 1 . . . . . . . . . . . . 2 3 . 1 . 3 7 1 Corrupted Parts 4 | . . . . 1 . . . . . . . . . . . . . 1 1 1 . . . . . System Corruption 11 | . . . . 4 . . . . . . . . . . . . . 4 2 1 . . . . . Parts Lost 36 | . 1 1 . . 1 2 . . . 4 2 4 . . 1 . . . . . . 1 1 9 9 Power 4 | . 1 . . . . . . . . . . 1 . . 1 . . . . . . . . 1 . Propulsion 10 | . . 1 . . . 2 . . . 2 . 1 . . . . . . . . . . . 2 2 Utility 15 | . . . . . 1 . . . . . 1 . . . . . . . . . . 1 1 6 5 Weapon 7 | . . . . . . . . . . 2 1 2 . . . . . . . . . . . . 2 Highest Loss Streak 9 | . 1 1 . . 1 1 . . . 1 1 2 . . 1 . . . . . . 1 1 3 9 To Critical Strikes . | . . . . . . . . . . . . . . . . . . . . . . . . . . Average Slot Usage (%) 93 | . 96 99 100 100 96 99 99 98 96 98 98 93 98 100 96 97 93 88 87 87 83 83 84 85 59 Engine 4 | . 10 14 14 14 9 9 9 9 7 7 7 . . . . 4 1 . . . . . . . . Reactor 2 | . . . . . . . . . . . . 3 6 6 5 . . 4 5 5 5 5 4 2 . Treads 20 | . 28 28 28 28 25 26 27 27 23 22 23 23 26 26 26 25 23 12 11 11 10 10 9 9 5 Device 6 | . 13 14 14 14 12 11 9 8 8 8 4 . . . . . . 9 3 3 5 9 5 12 9 Storage 7 | . 14 14 14 14 9 9 9 9 7 7 7 7 6 6 6 6 5 5 5 5 5 5 4 4 2 Processor 4 | . . . . . 8 7 . . 10 7 7 7 6 6 6 6 5 5 5 5 5 5 4 4 2 Hackware 21 | . . . . . . 7 18 18 15 21 25 27 26 26 29 32 29 29 36 36 31 27 36 32 19 Protection 1 | . . . . . 5 . . . . . . . 4 6 . . 4 . . . 4 3 3 1 3 Energy Gun 7 | . 2 . . . 24 23 20 22 17 17 18 14 5 . . . . . . . . . . . 2 Energy Cannon 3 | . . . . . . . 3 1 4 . . . . 6 6 12 11 12 8 6 1 1 2 9 6 Ballistic Gun 2 | . 2 . . . . . . . . . . 2 6 6 4 . . 1 3 5 10 10 7 3 . Launcher 2 | . 17 20 4 14 . . . 1 . . . . . . . . . . . . . . 1 . . Special Weapon 2 | . . . 11 6 . . . . . 1 . 3 6 6 6 5 4 3 3 4 3 2 2 . . Impact Weapon 1 | . 5 6 11 6 1 . 2 1 . 1 1 1 . . 1 . . . . . . . . . . Peak Build Rating 159 | 6 10 10 10 13 34 42 48 50 57 54 52 61 65 66 72 69 88 123 130 127 139 145 150 158 159 Average Rating 71 | 5 8 9 8 10 28 35 42 46 52 46 45 49 61 65 68 64 77 117 122 123 135 140 146 149 104 On Entrance 64 | . 6 9 10 9 13 30 42 46 50 54 42 43 58 65 65 58 64 88 120 127 127 137 138 134 153 Naked Turns 65 | . . . . . . . . . . . . . . . . . . . . . . . . . 65 Heaviest Build 179 | 14 19 19 19 21 53 44 49 55 63 51 109 110 117 117 117 115 135 151 132 132 145 145 156 179 179 Greatest Support 167 | 40 40 40 40 40 60 63 73 73 73 73 60 60 80 80 90 90 105 155 155 155 155 155 155 167 150 Greatest Overweight (x) 2 | . . . . . 1 . . 1 . 1 1 1 1 1 1 2 1 1 . . 1 . 1 1 1 Average Overweight (x) . | . . . . . . . . . . . . 1 1 1 1 1 1 . . . . . . . . Largest Inventory Capacity 25 | 8 8 8 8 8 15 15 15 15 15 15 25 25 25 25 25 25 25 25 25 25 25 25 25 25 25 Average Capacity 19 | 7 8 8 8 8 14 15 15 15 15 15 16 25 25 25 25 25 25 25 25 25 25 25 25 25 19 Most Carried 25 | 4 8 8 8 8 15 15 15 15 15 15 15 25 25 25 25 25 25 25 25 25 25 25 24 24 25 Average Carried 18 | 1 7 7 7 7 12 14 14 14 14 14 14 21 24 23 24 24 24 24 24 24 24 24 21 20 18 Final Capacity 25 | 8 8 8 8 8 15 15 15 15 15 15 25 25 25 25 25 25 25 25 25 25 25 25 25 25 5 Final Carried 25 | 4 8 8 8 8 15 15 15 15 15 15 15 25 25 23 25 25 23 25 25 25 25 25 18 24 5 Class Distribution -------------------- 44% | Botlord-Skirmisher 17% | Mutant 10% | Scavenger-Skirmisher 7% | Skirmisher 4% | Bothacker-Skirmisher 4% | Botlord-Mutant 4% | Botlord-Tank Dominant Class ---------------- Mutant | -10/Materials Mutant | -10/Mines Mutant | -10/Exiles Mutant | -9/Mines Scavenger-Skirmisher | -8/Materials Skirmisher | -8/Garrison Skirmisher | -8/Materials Scavenger-Skirmisher | -8/Garrison Scavenger-Skirmisher | -7/Factory Bothacker-Skirmisher | -7/Garrison Bothacker-Skirmisher | -7/Factory Botlord-Skirmisher | -7/Garrison Botlord-Skirmisher | -6/Factory Botlord-Skirmisher | -6/Waste Botlord-Skirmisher | -6/Factory Botlord-Skirmisher | -6/Garrison Botlord-Skirmisher | -5/Factory Botlord-Skirmisher | -5/Garrison Botlord-Skirmisher | -5/Factory Botlord-Skirmisher | -5/Garrison Botlord-Skirmisher | -4/Factory Botlord-Skirmisher | -4/Garrison Botlord-Skirmisher | -3/Research Botlord-Skirmisher | -3/Garrison Mutant | -3/Testing Resources | -11 -10 -10 -10 -9 -8 -8 -8 -8 -7 -7 -7 -7 -6 -6 -6 -6 -5 -5 -5 -5 -4 -4 -3 -3 -3 ----------- Run | Yrd Mat Min Exi Min Mat Gar Mat Gar Fac Gar Fac Gar Fac Was Fac Gar Fac Gar Fac Gar Fac Gar Res Gar Tes Matter Collected 9107 | 275 260 107 . 97 198 648 180 188 180 355 249 615 202 . 403 430 373 348 519 365 508 741 676 829 361 Remotely . | . . . . . . . . . . . . . . . . . . . . . . . . . . Salvage Created 12753 | 106 1260 75 . 155 513 758 914 502 840 473 533 398 283 288 227 82 266 234 721 183 205 933 611 1789 404 Parts 583 | 11 52 3 . 11 31 31 52 21 31 29 26 16 15 2 5 6 9 15 20 12 7 47 52 73 6 Haulers Intercepted 12 | . 2 . . . 2 . 3 . 2 . 3 . . . . . . . . . . . . . . Recyclers Shooed 8 | . 2 . . . . . . . . . 2 . 2 . . . 1 . 1 . . . . . . Parts Field Recycled . | . . . . . . . . . . . . . . . . . . . . . . . . . . Retrieved Matter . | . . . . . . . . . . . . . . . . . . . . . . . . . . Parts Self-Destructed . | . . . . . . . . . . . . . . . . . . . . . . . . . . Prevented . | . . . . . . . . . . . . . . . . . . . . . . . . . . Kills | -11 -10 -10 -10 -9 -8 -8 -8 -8 -7 -7 -7 -7 -6 -6 -6 -6 -5 -5 -5 -5 -4 -4 -3 -3 -3 ------- Run | Yrd Mat Min Exi Min Mat Gar Mat Gar Fac Gar Fac Gar Fac Was Fac Gar Fac Gar Fac Gar Fac Gar Res Gar Tes Combat Hostiles Destroyed 226 | . 18 2 . 5 10 20 16 10 12 17 11 13 2 1 5 4 1 4 2 5 3 18 9 26 12 Melee 2 | . 1 . . . . . . 1 . . . . . . . . . . . . . . . . . Guns 99 | . . . . . 6 10 13 5 11 10 9 7 2 1 1 . . . 1 1 3 11 4 3 1 Cannons 55 | . . . . . . . 3 2 1 . 2 . . . 3 2 1 4 1 3 . 5 5 21 2 AOE 60 | . 14 2 . 5 4 9 . 2 . 7 . 5 . . . 2 . . . 1 . . . . 9 Classes Destroyed 22 | 2 8 . . . 1 . 2 2 . 1 . . . 1 . 2 . . . 1 . 2 . . . Worker 15 | . 1 . . . 3 . 3 . 2 . 1 . 1 . . . . . 2 . . . 2 . . Builder 5 | . 2 . . . . . 2 . . . 1 . . . . . . . . . . . . . . Tunneler 4 | 2 1 . . 1 . . . . . . . . . . . . . . . . . . . . . Hauler 12 | . 2 . . . 2 . 3 . 2 . 3 . . . . . . . . . . . . . . Recycler 14 | 1 3 . . . 1 . . . 2 . . . 1 . . . 2 . 4 . . . . . . Mechanic 3 | . 1 . . . . . . . . . . . . . . . . . . . . . . . 2 Operator 3 | . 1 . . . 1 . . . . . . . 1 . . . . . . . . . . . . Watcher 8 | . 3 . . . . . 4 . . . 1 . . . . . . . . . . . . . . Swarmer 54 | . 2 . . 4 6 7 5 . . 6 5 7 . . . 1 . 1 . 1 . 6 . 3 . Cutter 2 | . . . . . . . . . . . . . . . . 2 . . . . . . . . . Saboteur 1 | . . . . . . . . . . . . . . . . . . . . . . 1 . . . Grunt 98 | . 16 2 . 1 2 12 8 6 7 7 3 2 . . 4 . . . 2 . 1 3 1 15 6 Brawler 5 | . . . . . . . 1 . . 1 . . . . . . . . . . . . . 2 1 Duelist 4 | . . . . . . . . . . 1 . . 1 . . . . . . . . . . . 2 Protector 1 | . . . . . . . 1 . . . . . . . . . . . . . . . . . . Sentry 15 | . . . . . 2 1 1 1 2 1 1 2 . . . . . 1 1 . . . . . 2 Specialist 2 | . . . . . . . . . . . . . . . . . . . . 1 . . 1 . . Hunter 14 | . . . . . . . . 2 2 . . . 1 . 1 . 1 . . 1 1 4 1 . . Programmer 26 | . . . . . . . . 1 1 1 2 2 . . . . . 2 . 2 1 3 6 4 1 Behemoth 3 | . . . . . . . . . . . . . . . . . . . . . . 1 . 2 . Compactor 1 | . . . . . . . . . . . . . . 1 . . . . . . . . . . . Striker 1 | . . . . . . . . . . . . . . . . 1 . . . . . . . . . Butcher 1 | . . . . . . . . . . . . 1 . . . . . . . . . . . . . Best Kill Streak 12 | 3 6 2 . 4 5 6 4 3 4 4 4 4 2 1 2 2 2 1 2 2 1 4 2 5 12 Combat Bots Only 10 | . 3 2 . 4 4 6 4 3 3 4 4 4 1 1 2 2 1 1 1 2 1 4 2 5 10 Max Kills in Single Turn 4 | 1 3 2 . 2 2 2 2 2 2 4 3 4 2 1 1 1 1 1 1 1 1 2 1 1 2 Gunslinging 1 | . . . . . . . 1 1 . . 1 . . . . . . . . . . 1 . . . Exploded 4 | . 2 2 . 2 2 2 . 2 . 4 . 3 . . . 1 . . . 1 . . . . 2 Melee 1 | . 1 . . . . . . 1 . . . . . . . . . . . . . . . . . Uniques/NPCs Destroyed . | . . . . . . . . . . . . . . . . . . . . . . . . . . Combat | -11 -10 -10 -10 -9 -8 -8 -8 -8 -7 -7 -7 -7 -6 -6 -6 -6 -5 -5 -5 -5 -4 -4 -3 -3 -3 -------- Run | Yrd Mat Min Exi Min Mat Gar Mat Gar Fac Gar Fac Gar Fac Was Fac Gar Fac Gar Fac Gar Fac Gar Res Gar Tes Hostile Shots Fired 1193 | . 59 . . 1 27 99 33 15 23 93 63 66 39 . 34 101 . 25 6 59 33 46 77 137 157 Missed 365 | . 22 . . . 5 25 8 6 6 27 21 25 15 . 8 41 . 7 2 28 12 19 20 38 30 Damage Taken 15383 | . 610 27 . 21 266 1200 313 137 212 801 631 469 314 50 624 651 94 319 187 640 470 477 961 2282 3627 Core 2420 | . 156 . . . 74 142 14 18 . 124 158 112 23 . 69 77 . 24 . 51 40 25 82 201 1030 Absorbed by Shields 621 | . . . . . . . . . . . . 67 . . . 224 . 32 . 92 . . 19 133 54 Reduced by Siege Mode 354 | . . . . . . . . . . . . . . . . . . 36 . . 6 . . 132 180 Regen/Repaired (Parts) 679 | . 17 . . . . . 291 . . . 93 . . . . . 257 . . 8 . . . . 13 Core Remaining (%) 71 | 100 . . . 37 . . . 54 . . . 43 . . . 80 . . . 92 . 94 . . . Volleys Fired 1026 | 11 34 2 . 4 39 66 44 25 36 50 35 51 28 34 35 43 17 35 50 60 39 98 58 112 20 Largest 3 | 2 2 1 . 2 3 3 3 3 3 3 3 3 2 2 2 3 2 3 2 3 3 3 3 3 3 Hottest 360 | 60 66 33 . 66 207 207 240 240 240 240 240 240 135 135 135 300 200 360 240 240 196 120 278 360 360 Shots Fired 1650 | 16 51 2 . 7 81 153 85 52 82 84 81 71 34 45 41 63 23 51 63 73 55 116 83 208 30 Gun 827 | 16 2 . . . 67 143 68 43 69 69 70 40 15 14 7 . . . 19 10 30 59 29 47 10 Cannon 465 | . . . . . 8 . 17 6 13 . 7 6 3 24 22 40 13 37 13 37 5 38 24 141 11 Launcher 104 | . 49 2 . 7 6 10 . 3 . 8 . 3 . . . 4 . . . 3 . . . . 9 Special 254 | . . . . . . . . . . 7 4 22 16 7 12 19 10 14 31 23 20 19 30 20 . Kinetic 240 | 5 . . . . . . . . . . . 8 8 14 7 . . . 19 10 30 59 29 47 4 Thermal 1039 | . . . . . 75 143 85 49 82 69 77 38 10 24 22 40 13 37 13 37 5 38 24 141 17 Explosive 46 | . . 2 . . 6 10 . 3 . 8 . 3 . . . 2 . . . 3 . . . . 9 Electromagnetic 71 | 11 51 . . 7 . . . . . . . . . . . 2 . . . . . . . . . Robot Hit Streak 30 | 3 8 1 . . 5 7 11 20 22 14 14 13 9 6 6 9 8 10 12 10 9 5 12 30 10 Robot Miss Streak 10 | 3 4 . . . 2 5 4 3 7 3 4 5 4 6 10 6 7 8 2 2 6 3 2 3 2 Penetration Max 1 | . . . . . . . . . . . . . . 1 1 . . . . . 1 . . 1 . Secondary Targets 9 | . . . . . . 2 3 1 . . 1 . . . . . . . . . . 1 1 . . Max Gunslinging Chain 2 | . . . . . . 1 2 1 . . 1 . . . . . . . . . . 1 1 . . Capacitor 23 | . . . . . . . . . . . . . . . . . . . . . . 23 . . . Shots Hit Robots 945 | 8 29 2 . 2 24 57 46 30 51 61 68 47 25 36 27 43 15 22 43 35 34 41 55 123 21 Core Hits 584 | 4 32 3 . 5 22 35 40 28 46 53 44 33 13 7 9 16 6 6 11 25 10 24 19 45 48 Critical Kills 6 | . 1 . . . . . . . . . . . . . . . . . 1 . . 1 1 2 . Critical Parts Destroyed 3 | . 2 . . . . . 1 . . . . . . . . . . . . . . . . . . Critical Strikes 12 | . 3 . . . . 1 1 . . . . . . . . . . . 1 1 . 1 1 3 . Burn 1 | . . . . . . 1 . . . . . . . . . . . . . . . . . . . Meltdown 2 | . . . . . . . . . . . . . . . . . . . . . . . . 2 . Destroy 5 | . . . . . . . . . . . . . . . . . . . 1 1 . 1 1 1 . Smash 4 | . 3 . . . . . 1 . . . . . . . . . . . . . . . . . . Melee Attacks 91 | . 23 1 . 2 2 14 5 3 5 5 3 8 . . 17 . . . . . . 1 2 . . Impact 86 | . 23 1 . 2 2 12 5 3 5 3 2 8 . . 17 . . . . . . 1 2 . . Slashing . | . . . . . . . . . . . . . . . . . . . . . . . . . . Piercing . | . . . . . . . . . . . . . . . . . . . . . . . . . . Sneak Attacks 15 | . 6 1 . 2 . 1 3 . . 1 . . . . 1 . . . . . . . . . . Combat Hostiles 2 | . 2 . . . . . . . . . . . . . . . . . . . . . . . . Follow-up Attacks . | . . . . . . . . . . . . . . . . . . . . . . . . . . Damage Inflicted 33210 | 102 2272 177 . 202 1137 1773 1657 1064 1405 1814 1794 1034 426 1275 880 1074 282 624 810 1140 574 1940 1170 4181 4403 Guns 11699 | 102 . . . . 485 1087 1021 716 1119 955 1545 638 298 336 104 . . . 419 128 574 682 487 807 196 Cannons 11493 | . . . . . 269 . 467 108 286 . 245 . 128 939 714 991 282 624 382 432 . 1258 683 3374 311 Explosions 8981 | . 1639 132 . 92 383 686 . 238 . 859 . 396 . . . 83 . . . 580 . . . . 3893 Melee 994 | . 619 34 . 110 . . 169 . . . . . . . 62 . . . . . . . . . . Ramming 43 | . 14 11 . . . . . 2 . . 4 . . . . . . . 9 . . . . . 3 Kinetic 3842 | 12 . . . . . . . . . . . 27 155 336 104 . . . 419 128 574 682 487 807 111 Thermal 19386 | . 126 . . . 754 1087 1488 824 1405 955 1790 611 271 939 714 991 282 624 382 432 . 1258 683 3374 396 Explosive 7190 | . . 132 . . 383 686 . 238 . 859 . 396 . . . 23 . . . 580 . . . . 3893 Electromagnetic 1755 | 90 1513 . . 92 . . . . . . . . . . . 60 . . . . . . . . . Impact 994 | . 619 34 . 110 . . 169 . . . . . . . 62 . . . . . . . . . . Slashing . | . . . . . . . . . . . . . . . . . . . . . . . . . . Piercing . | . . . . . . . . . . . . . . . . . . . . . . . . . . Highest Corruption 35 | . 3 3 3 8 5 5 5 5 . 3 5 6 . 35 35 35 . 4 4 6 . 1 5 18 31 Average Corruption 8 | . 1 3 3 3 5 5 5 5 . 2 3 5 . 21 35 35 . 2 3 4 . 1 3 13 22 Corruption Purged 4 | . . . . . . . . . . . . . . . . . . 4 . . . . . . . Corruption Blocked . | . . . . . . . . . . . . . . . . . . . . . . . . . . Effects 550 | . 11 23 4 13 17 49 24 17 . 14 29 43 . 15 44 78 . 9 17 34 . 3 23 69 14 Message Errors 148 | . 2 6 1 5 6 15 6 3 . 3 13 11 . 2 11 18 . 4 6 13 . 1 6 12 4 Matter Fused 124 | . 1 6 . 5 4 12 3 . . 7 8 10 . 7 10 17 . . 2 9 . 1 4 17 1 Heat Flow Errors 59 | . 2 1 2 . 3 5 4 1 . 1 3 5 . 1 5 8 . 2 . 3 . . 2 9 2 Energy Discharges 49 | . 1 2 . 1 2 5 4 2 . 1 . 5 . . 3 8 . . 3 1 . 1 1 7 2 Parts Rejected 6 | . . . . . . 1 . . . . . . . . 1 . . . 1 . . . 1 2 . Parts Fused 5 | . . . . . . . 1 . . . . 1 . . 1 1 . . . . . . . 1 . Data Loss (minor) 72 | . 3 6 1 . . 4 4 4 . . . 6 . 2 6 13 . 2 2 5 . . 4 10 . Data Loss (major) 33 | . 1 2 . 1 1 4 1 4 . . 3 1 . 1 3 3 . 1 . 1 . . 2 3 1 Misfires 22 | . 1 . . . . 3 . 2 . 1 1 3 . 2 . 2 . . 2 2 . . 2 1 . Alerts 8 | . . . . . . . . . . . . 1 . . 1 3 . . 1 . . . . 2 . Misdirections 5 | . . . . . . . . . . . . . . . 2 . . . . . . . . . 3 Weapon Failures 19 | . . . . 1 1 . 1 1 . 1 1 . . . 1 5 . . . . . . 1 5 1 Overload Shots 2 | . . . . . . . . . . . . . . . . . . . . . . . . . 2 Overflow Damage 555 | . 172 . . 50 6 20 104 . . 18 . 1 2 . 24 7 . 6 . 40 . . . 45 60 Projectiles 114 | . . . . . . . 12 . . . . . 2 . 2 7 . 6 . 40 . . . 45 . Explosions 137 | . 32 . . . 6 20 . . . 18 . 1 . . . . . . . . . . . . 60 Melee 304 | . 140 . . 50 . . 92 . . . . . . . 22 . . . . . . . . . . Knockbacks 6 | . 4 1 . . . . . . . . . . . . 1 . . . . . . . . . . Impact 6 | . 4 1 . . . . . . . . . . . . 1 . . . . . . . . . . Kinetic . | . . . . . . . . . . . . . . . . . . . . . . . . . . Secondary . | . . . . . . . . . . . . . . . . . . . . . . . . . . Self-Inflicted Damage 712 | . 169 28 . 11 49 1 . . . . . . . . . . . . . 28 . . . . 426 Shots 30 | . 18 1 . 1 1 1 . . . . . . . . . . . . . 1 . . . . 7 Rammed 8 | . 4 1 . . . . . . . . 1 . . . . . . . . . . . . . 2 Targets Rammed 11 | . 5 1 . . . . . 1 . . 1 . . . . . . . 1 . . . . . 2 Kicked . | . . . . . . . . . . . . . . . . . . . . . . . . . . Crushed 3 | . 1 . . . . . . 1 . . . . . . . . . . 1 . . . . . . Highest Temperature 564 | . 258 101 250 6 417 426 204 564 197 144 288 394 136 288 256 362 92 446 213 530 48 315 299 338 201 Average Temperature 98 | . 46 54 129 4 134 157 57 149 46 52 98 102 36 86 64 97 50 128 87 77 25 137 113 93 86 Received Heat Transfer 2974 | . 225 . . . 54 645 171 45 75 264 66 104 48 6 147 111 . 66 36 9 111 39 186 354 212 Effects 25 | . . . . . 1 8 . 4 . . 4 2 . 1 . . . 1 . . . 3 1 . . Shutdowns 5 | . . . . . . 2 . 1 . . . 1 . . . . . 1 . . . . . . . Energy Bleed 3 | . . . . . 1 . . . . . 1 . . . . . . . . . . . 1 . . Interference 11 | . . . . . . 4 . . . . 3 1 . 1 . . . . . . . 2 . . . Matter Decay 3 | . . . . . . 2 . . . . . . . . . . . . . . . 1 . . . Short Circuit 2 | . . . . . . . . 2 . . . . . . . . . . . . . . . . . Damage (minor) 1 | . . . . . . . . 1 . . . . . . . . . . . . . . . . . Siege Activations 15 | . . . . . . . . . . . . . . . . . . 1 . . 1 1 3 8 1 Total Turns 287 | . . . . . . . . . . . . . . . . . . 24 . . 4 12 38 181 28 Longest Duration 59 | . . . . . . . . . . . . . . . . . . 24 . . 4 12 22 59 28 Robots Corrupted 9 | . 7 . . 1 . . 1 . . . . . . . . . . . . . . . . . . Combat Hostiles 3 | . 3 . . . . . . . . . . . . . . . . . . . . . . . . Parts Fried 22 | . 19 . . 1 . . 2 . . . . . . . . . . . . . . . . . . Impact Corruptions 12 | . 7 . . 2 . . 2 . . . . . . . 1 . . . . . . . . . . Robots Melted 7 | . . . . . . 1 . . . . . 1 . . 1 . . . . . . 2 . 2 . Combat Hostiles 7 | . . . . . . 1 . . . . . 1 . . 1 . . . . . . 2 . 2 . Parts Melted 68 | . . . . . . 3 9 2 9 8 16 6 . . . . . 3 1 1 . 6 . 4 . Heat Transferred 30706 | . 200 . . . 1485 2183 3299 1865 3115 1968 3910 1215 475 1100 850 1175 325 297 276 456 . 2720 536 2849 407 Parts Sabotaged 5 | . . . . . . . . . . . . . . . . 4 . . . . . 1 . . . Parts Stolen . | . . . . . . . . . . . . . . . . . . . . . . . . . . Parts Stripped . | . . . . . . . . . . . . . . . . . . . . . . . . . . Power Chain Reactions 8 | . 6 . . 2 . . . . . . . . . . . . . . . . . . . . . Alert | -11 -10 -10 -10 -9 -8 -8 -8 -8 -7 -7 -7 -7 -6 -6 -6 -6 -5 -5 -5 -5 -4 -4 -3 -3 -3 ------- Run | Yrd Mat Min Exi Min Mat Gar Mat Gar Fac Gar Fac Gar Fac Was Fac Gar Fac Gar Fac Gar Fac Gar Res Gar Tes Peak Influence 2228 | 15 439 152 . 126 276 1224 870 984 536 1088 776 1391 745 180 462 1635 1545 1519 1240 1735 1379 2051 1283 1807 2228 Initial 1153 | . 9 152 . . 48 84 596 565 516 375 571 536 730 180 119 310 858 1081 797 796 900 912 1153 838 1016 Average 792 | 5 208 53 . 34 127 720 602 730 408 734 645 883 595 174 318 962 983 1300 985 1363 1155 1408 1134 1343 1942 Maximum Alert Level 5 | . 2 . . . 1 4 3 3 2 3 3 4 3 . 2 5 4 4 4 5 4 5 4 5 5 Low Security (%) 14 | 100 41 100 . 100 76 1 . . . . . . . 100 21 . . . . . . . . . . Level 1 10 | . 57 . . . 23 20 1 . 60 7 . . . . 55 16 . . . . . . . . . Level 2 19 | . 1 . . . . 27 81 48 39 34 86 20 76 . 22 10 . . . . . . . . . Level 3 28 | . . . . . . 47 16 51 . 57 13 58 23 . . 40 74 4 80 21 36 28 36 26 . Level 4 21 | . . . . . . 3 . . . . . 20 . . . 29 25 95 19 61 63 40 63 47 . Level 5 4 | . . . . . . . . . . . . . . . . 2 . . . 16 . 30 . 25 . High Security . | . . . . . . . . . . . . . . . . . . . . . . . . . . Max Security . | . . . . . . . . . . . . . . . . . . . . . . . . . 99 Squads Dispatched 78 | . 6 . . . 2 . 6 . 9 . 6 . 3 . 4 . 4 . 8 . 7 . 7 . 16 Investigation 14 | . 5 . . . . . 1 . 4 . 1 . . . . . 1 . 1 . . . 1 . . Extermination 10 | . . . . . . . . . 1 . 2 . 1 . . . 2 . 1 . . . 3 . . Reinforcement 22 | . 1 . . . 2 . 1 . 2 . 1 . 2 . 3 . . . 4 . 4 . . . 2 Assault 22 | . . . . . . . 1 . . . . . . . . . 1 . 2 . 3 . 3 . 12 Garrison 10 | . . . . . . . 3 . 2 . 2 . . . 1 . . . . . . . . . 2 Intercept . | . . . . . . . . . . . . . . . . . . . . . . . . . . Searches Triggered . | . . . . . . . . . . . . . . . . . . . . . . . . . . Construction Impeded 2 | . . . . . . . . . . . . . . . 1 . . . . . 1 . . . . Haulers Reinforced 8 | . . . . . . . . . 2 . 1 . 1 . 1 . . . 2 . 1 . . . . Active Scanning Responses . | . . . . . . . . . . . . . . . . . . . . . . . . . . Cargo Convoy Interrupts . | . . . . . . . . . . . . . . . . . . . . . . . . . . Stealth | -11 -10 -10 -10 -9 -8 -8 -8 -8 -7 -7 -7 -7 -6 -6 -6 -6 -5 -5 -5 -5 -4 -4 -3 -3 -3 --------- Run | Yrd Mat Min Exi Min Mat Gar Mat Gar Fac Gar Fac Gar Fac Was Fac Gar Fac Gar Fac Gar Fac Gar Res Gar Tes Distress Signals 14 | . 1 . . . 4 . . . 2 . . . . . 1 . 1 . 1 . 1 . 3 . . Communications Jammed 59 | . . . . . . . . . . . . . . . . . . . 10 . 19 . 21 . 9 Distress Signals 59 | . . . . . . . . . . . . . . . . . . . 10 . 19 . 21 . 9 Times Spotted 504 | . 27 2 . 2 17 29 22 8 15 26 20 27 11 6 14 27 16 15 24 23 26 28 34 43 42 Peak Tracking Total 24 | . 3 2 . 2 5 5 6 3 4 4 4 6 4 3 5 6 6 6 5 8 8 7 6 5 24 Tactical Retreats 29 | . 3 . . . . 5 2 1 1 1 . 2 . . . 1 . . . 1 3 3 2 3 1 Traps | -11 -10 -10 -10 -9 -8 -8 -8 -8 -7 -7 -7 -7 -6 -6 -6 -6 -5 -5 -5 -5 -4 -4 -3 -3 -3 ------- Run | Yrd Mat Min Exi Min Mat Gar Mat Gar Fac Gar Fac Gar Fac Was Fac Gar Fac Gar Fac Gar Fac Gar Res Gar Tes Traps Triggered 28 | . 2 . . . . 1 1 . 2 4 2 . 1 . . 7 1 1 . 2 . 1 1 2 . Indirectly 2 | . 2 . . . . . . . . . . . . . . . . . . . . . . . . Trap Hack Attempts . | . . . . . . . . . . . . . . . . . . . . . . . . . . Triggered . | . . . . . . . . . . . . . . . . . . . . . . . . . . Disarmed . | . . . . . . . . . . . . . . . . . . . . . . . . . . Reprogrammed . | . . . . . . . . . . . . . . . . . . . . . . . . . . Reused 1 | . . . . . . . . 1 . . . . . . . . . . . . . . . . . Traps Extracted . | . . . . . . . . . . . . . . . . . . . . . . . . . . Installed 9 | . . . . 3 . . . 6 . . . . . . . . . . . . . . . . . Triggered 1 | . . . . . . . . 1 . . . . . . . . . . . . . . . . . Most Traps Carried 6 | . . . . . . . . 6 . . 6 6 6 6 6 6 6 6 . . . . . . . Machines | -11 -10 -10 -10 -9 -8 -8 -8 -8 -7 -7 -7 -7 -6 -6 -6 -6 -5 -5 -5 -5 -4 -4 -3 -3 -3 ---------- Run | Yrd Mat Min Exi Min Mat Gar Mat Gar Fac Gar Fac Gar Fac Was Fac Gar Fac Gar Fac Gar Fac Gar Res Gar Tes Machines Disabled 94 | . 5 . . 4 3 7 1 2 . 4 1 4 1 . 7 6 2 4 1 10 3 12 2 9 6 Max in Single Turn 3 | . 2 . . 3 1 2 . 1 . 1 . 1 . . 1 2 . 1 1 2 . 2 1 1 2 Garrison Access 1 | . . . . . . . . . . . 1 . . . . . . . . . . . . . . Garrison Relay 26 | . . . . . . 3 . 1 . 3 . 3 . . . 4 . 2 . 4 . 4 . 2 . Phase Generator 4 | . . . . . . 1 . . . . . . . . . 1 . . . 1 . 1 . . . Machines Repaired . | . . . . . . . . . . . . . . . . . . . . . . . . . . Machines Dismantled . | . . . . . . . . . . . . . . . . . . . . . . . . . . Machines Sabotaged . | . . . . . . . . . . . . . . . . . . . . . . . . . . Overloaded Fab Kills . | . . . . . . . . . . . . . . . . . . . . . . . . . . Hacking | -11 -10 -10 -10 -9 -8 -8 -8 -8 -7 -7 -7 -7 -6 -6 -6 -6 -5 -5 -5 -5 -4 -4 -3 -3 -3 --------- Run | Yrd Mat Min Exi Min Mat Gar Mat Gar Fac Gar Fac Gar Fac Was Fac Gar Fac Gar Fac Gar Fac Gar Res Gar Tes Machines Accessed 74 | . 6 1 2 . 2 2 5 2 6 3 6 4 6 . 2 2 3 1 6 3 3 2 4 3 . Terminals 46 | . 4 . . . 1 2 3 2 5 3 1 4 2 . 1 2 2 1 3 3 1 2 1 3 . Fabricators 7 | . . . . . . . . . . . 1 . 3 . . . . . 1 . 1 . 1 . . Repair Stations 6 | . 1 . . . . . 1 . . . 2 . 1 . . . . . . . . . 1 . . Recycling Units 2 | . 1 . . . . . . . . . . . . . . . . . 1 . . . . . . Scanalyzers . | . . . . . . . . . . . . . . . . . . . . . . . . . . Garrison Access 10 | . . . . . 1 . 1 . 1 . 2 . . . 1 . 1 . 1 . 1 . 1 . . Total Hacks 157 | . 22 1 2 . 6 3 14 5 18 5 11 5 13 . 3 5 5 2 11 3 8 5 6 4 . Successful 81 | . 10 1 2 . 2 2 9 1 9 4 8 3 6 . 2 . 2 1 6 3 5 1 2 2 . Failed 76 | . 12 . . . 4 1 5 4 9 1 3 2 7 . 1 5 3 1 5 . 3 4 4 2 . Catastrophic 14 | . . . . . 1 . 1 . 3 . . . 1 . 1 . 3 . 3 . . . 1 . . Database Lockouts . | . . . . . . . . . . . . . . . . . . . . . . . . . . Manual 61 | . 17 . 1 . 4 . 8 . 13 2 1 . 6 . . . . . 5 . 2 . 2 . . Terminals 104 | . 18 . . . 5 3 9 5 16 5 2 5 3 . 2 5 3 2 5 3 3 5 1 4 . Fabricators 15 | . . . . . . . . . . . 1 . 9 . . . . . 1 . 3 . 1 . . Repair Stations 12 | . 1 . . . . . 2 . . . 6 . 1 . . . . . . . . . 2 . . Recycling Units 4 | . 3 . . . . . . . . . . . . . . . . . 1 . . . . . . Scanalyzers . | . . . . . . . . . . . . . . . . . . . . . . . . . . Garrison Access 19 | . . . . . 1 . 3 . 2 . 2 . . . 1 . 2 . 4 . 2 . 2 . . Terminal Hacks 41 | . 5 1 2 . 1 2 3 1 5 3 1 3 1 . 1 . . 1 3 3 2 1 . 2 . Record 2 | . . . 1 . . . . . . . . . . . . . . . 1 . . . . . . Robot Analysis 3 | . 2 . . . 1 . . . . . . . . . . . . . . . . . . . . Prototype ID Bank 3 | . 1 . . . . . . . 1 . . . . . . . . . . . 1 . . . . Open Door 4 | . . 1 . . . . . . . 1 . 1 . . . . . . . 1 . . . . . Branch Access Points 3 | . . . . . . . . . 1 . . . . . . . . . 1 . 1 . . . . Emergency Access Points 3 | . . . . . . 1 . . . . . . . . . . . . . 1 . 1 . . . Terminal Index 2 | . . . . . . . . . . . . . 1 . . . . . 1 . . . . . . Garrison Index 1 | . . . . . . . . . 1 . . . . . . . . . . . . . . . . Alert Level 2 | . . . . . . . 1 . . . . . . . 1 . . . . . . . . . . Unreport Threat 1 | . . . . . . . 1 . . . . . . . . . . . . . . . . . . Locate Traps 2 | . 1 . . . . . . . . . 1 . . . . . . . . . . . . . . Maintenance Status 1 | . 1 . . . . . . . . . . . . . . . . . . . . . . . . Zone Layout 3 | . . . . . . . 1 . 2 . . . . . . . . . . . . . . . . Garrison Registry 6 | . . . . . . 1 . 1 . 1 . 1 . . . . . 1 . . . . . 1 . Patrol Navigation 4 | . . . . . . . . . . 1 . 1 . . . . . . . 1 . . . 1 . Derelict Proto ID Bank 1 | . . . 1 . . . . . . . . . . . . . . . . . . . . . . Fabricator Hacks 5 | . . . . . . . . . . . 1 . 3 . . . . . . . 1 . . . . Network Status 3 | . . . . . . . . . . . 1 . 1 . . . . . . . 1 . . . . Build 2 | . . . . . . . . . . . . . 2 . . . . . . . . . . . . Repair Station Hacks 5 | . . . . . . . 2 . . . 3 . . . . . . . . . . . . . . Scan Component 3 | . . . . . . . 1 . . . 2 . . . . . . . . . . . . . . Repair 2 | . . . . . . . 1 . . . 1 . . . . . . . . . . . . . . Recycling Unit Hacks 1 | . 1 . . . . . . . . . . . . . . . . . . . . . . . . Retrieve Components 1 | . 1 . . . . . . . . . . . . . . . . . . . . . . . . Scanalyzer . | . . . . . . . . . . . . . . . . . . . . . . . . . . Garrison Access Hacks 16 | . . . . . 1 . 2 . 2 . 2 . . . 1 . 2 . 2 . 2 . 2 . . Unlock Access 9 | . . . . . 1 . 1 . 1 . 1 . . . 1 . 1 . 1 . 1 . 1 . . Seal Access 1 | . . . . . . . . . . . 1 . . . . . . . . . . . . . . Coupler Status 6 | . . . . . . . 1 . 1 . . . . . . . 1 . 1 . 1 . 1 . . Unauthorized Hacks 13 | . 4 . . . . . 2 . 2 1 1 . 2 . . . . . 1 . . . . . . Terminals 6 | . 2 . . . . . 1 . 2 1 . . . . . . . . . . . . . . . Track 1 | . 1 . . . . . . . . . . . . . . . . . . . . . . . . Botnet 3 | . 1 . . . . . 1 . 1 . . . . . . . . . . . . . . . . Search 2 | . . . . . . . . . 1 1 . . . . . . . . . . . . . . . Fabricators 1 | . . . . . . . . . . . . . 1 . . . . . . . . . . . . Prioritize 1 | . . . . . . . . . . . . . 1 . . . . . . . . . . . . Repair Stations 3 | . 1 . . . . . . . . . 1 . 1 . . . . . . . . . . . . Mechanics 1 | . . . . . . . . . . . . . 1 . . . . . . . . . . . . Patch 2 | . 1 . . . . . . . . . 1 . . . . . . . . . . . . . . Recycling Units 1 | . 1 . . . . . . . . . . . . . . . . . . . . . . . . Tunnel 1 | . 1 . . . . . . . . . . . . . . . . . . . . . . . . Scanalyzers . | . . . . . . . . . . . . . . . . . . . . . . . . . . Garrison Access 2 | . . . . . . . 1 . . . . . . . . . . . 1 . . . . . . Broadcast 1 | . . . . . . . 1 . . . . . . . . . . . . . . . . . . Eject 1 | . . . . . . . . . . . . . . . . . . . 1 . . . . . . Data Cores Recovered 3 | . . . . . . . . . . . . . 2 . . . . . 1 . . . . . . Used 1 | . . . . . . . . . . . . . 1 . . . . . . . . . . . . Hacking Detections 60 | . 4 . . . 2 2 4 1 6 2 4 3 5 . 1 2 3 1 6 2 3 2 4 3 . Full Trace Events 8 | . 1 . . . . . . 1 1 . . . . . . 2 1 . . . . 1 1 . . Feedback Events 1 | . . . . . . . . . . . . . . . . . . . . . . 1 . . . Corruption 1 | . . . . . . . . . . . . . . . . . . . . . . 1 . . . Feedback Blocked . | . . . . . . . . . . . . . . . . . . . . . . . . . . Robot Schematics Acquired 1 | . . . . . . . . . . . . . . . . . . . . . . . . . 1 Robots Built 1 | . . . . . . . . . . . . . 1 . . . . . . . . . . . . Authchips . | . . . . . . . . . . . . . . . . . . . . . . . . . . Time 50 | . . . . . . . . . . . . . 50 . . . . . . . . . . . . Total Robot Build Rating 5 | . . . . . . . . . . . . . 5 . . . . . . . . . . . . Part Schematics Acquired 1 | . . . . . . . . . . . . . . . . . . . . . . . . . 1 Parts Built 1 | . . . . . . . . . . . . . 1 . . . . . . . . . . . . Authchips . | . . . . . . . . . . . . . . . . . . . . . . . . . . Time 95 | . . . . . . . . . . . . . 95 . . . . . . . . . . . . Total Part Build Rating 5 | . . . . . . . . . . . . . 5 . . . . . . . . . . . . Parts Repaired 2 | . . . . . . . 1 . . . 1 . . . . . . . . . . . . . . Time 99 | . . . . . . . 38 . . . 61 . . . . . . . . . . . . . . Parts Recycled . | . . . . . . . . . . . . . . . . . . . . . . . . . . Recycled Matter . | . . . . . . . . . . . . . . . . . . . . . . . . . . Retrieved Matter . | . . . . . . . . . . . . . . . . . . . . . . . . . . Retrieved Components 3 | . 3 . . . . . . . . . . . . . . . . . . . . . . . . Parts Scanalyzed . | . . . . . . . . . . . . . . . . . . . . . . . . . . Part Schematics Acquired . | . . . . . . . . . . . . . . . . . . . . . . . . . . Parts Damaged . | . . . . . . . . . . . . . . . . . . . . . . . . . . Bothacking | -11 -10 -10 -10 -9 -8 -8 -8 -8 -7 -7 -7 -7 -6 -6 -6 -6 -5 -5 -5 -5 -4 -4 -3 -3 -3 ------------ Run | Yrd Mat Min Exi Min Mat Gar Mat Gar Fac Gar Fac Gar Fac Was Fac Gar Fac Gar Fac Gar Fac Gar Res Gar Tes Used RIF Installer 10 | . . . . . . 1 . 2 . 2 . 1 . . . 1 . 1 . . . 1 . 1 . Coupler Efficiency 2 | . . . . . . . . 1 . . . . . . . . . . . . . . . 1 . Hotswap 1 | . . . . . . . . 1 . . . . . . . . . . . . . . . . . Signal Jammer 1 | . . . . . . . . . . . . . . . . . . 1 . . . . . . . Patrol Navigation 1 | . . . . . . . . . . . . . . . . . . . . . . 1 . . . Structural Interface 1 | . . . . . . . . . . 1 . . . . . . . . . . . . . . . Program Shield 1 | . . . . . . . . . . . . . . . . 1 . . . . . . . . . Autooverride 1 | . . . . . . . . . . 1 . . . . . . . . . . . . . . . Autoassimilate 1 | . . . . . . . . . . . . 1 . . . . . . . . . . . . . Robots Hacked 163 | . . . . . . 1 . . . 5 5 15 8 6 5 11 7 12 20 13 13 12 16 14 . Non-combat 21 | . . . . . . . . . . . 1 . 3 . 1 . 3 . 7 1 4 . 1 . . Combat 142 | . . . . . . 1 . . . 5 4 15 5 6 4 11 4 12 13 12 9 12 15 14 . Autooverrided 10 | . . . . . . . . . . . 2 . . . . 1 . 2 1 . . 1 1 2 . Autoassimilated 15 | . . . . . . . . . . . . 3 . . . 1 1 2 3 . 2 1 1 1 . Robot Hacks Applied 149 | . . . . . . 1 . . . 5 4 13 11 6 6 9 7 8 17 15 12 10 14 11 . parse_system 1 | . . . . . . . . . . . . . . . . . . . 1 . . . . . . no_distress 3 | . . . . . . . . . . . 1 . 1 . . . . . . . 1 . . . . map_walls 1 | . . . . . . . . . . . . . . . . . . . . . 1 . . . . find_fabricator 2 | . . . . . . . . . . . 1 . . . . . . . . . 1 . . . . drop_inventory 5 | . . . . . . . . . . . . . 1 . . . 1 . 2 . 1 . . . . check_alert 1 | . . . . . . . . . . . . . 1 . . . . . . . . . . . . purge_threat 2 | . . . . . . . . . . . . . 1 . . . . . . 1 . . . . . block_reporting 1 | . . . . . . . . . . . . . 1 . . . . . . . . . . . . map_route 3 | . . . . . . . . . . . . . . . . . 1 . 1 . 1 . . . . ignore_targets 6 | . . . . . . . . . . . . . . 6 . . . . . . . . . . . find_garrison 3 | . . . . . . . . . . . 1 . . . 1 . . . 1 . . . . . . scatter_targeting 9 | . . . . . . . . . . . 1 1 . . 2 1 1 . . 1 . 2 . . . spike_heat 5 | . . . . . . . . . . . . 3 1 . . . . 1 . . . . . . . amplify_resonance 16 | . . . . . . . . . . . . 2 1 . . 2 1 3 1 2 . 2 . 2 . wipe_record 1 | . . . . . . . . . . . . . . . . . . . . . . . 1 . . overwrite_iff 18 | . . . . . . . . . . 1 . 2 1 . 1 1 1 2 1 2 . 1 3 2 . formatsys_low 7 | . . . . . . . . . . . . . 1 . 1 . 1 . 3 1 . . . . . formatsys_high 62 | . . . . . . 1 . . . 4 . 5 2 . 1 4 1 2 7 8 7 5 8 7 . formatsys_deep 3 | . . . . . . . . . . . . . . . . 1 . . . . . . 2 . . Relay Couplers Released 112 | . . . . . . 14 . 6 . 12 1 11 . . . 16 . 6 4 18 . 15 . 9 . Ejected 4 | . . . . . . . . . . . . . . . . . . . 4 . . . . . . Machine Destruction 105 | . . . . . . 14 . 3 . 12 1 11 . . . 16 . 6 . 18 . 15 . 9 . Programmers 3 | . . . . . . . . 3 . . . . . . . . . . . . . . . . . Attached 45 | . . . . . . 2 . 2 . 4 . 6 1 . 1 7 1 2 4 8 2 2 2 1 . Fabnet Peak Effective % . | . . . . . . . . . . . . . . . . . . . . . . . . . . Robots Rewired 6 | . . . . . . . . . . . . . . . . 4 . . . . . . . 2 . Allies Hacked 1 | . . . . . . . . . . . . . . . . . . . . 1 . . . . . Hacks Repelled . | . . . . . . . . . . . . . . . . . . . . . . . . . . Allies | -11 -10 -10 -10 -9 -8 -8 -8 -8 -7 -7 -7 -7 -6 -6 -6 -6 -5 -5 -5 -5 -4 -4 -3 -3 -3 -------- Run | Yrd Mat Min Exi Min Mat Gar Mat Gar Fac Gar Fac Gar Fac Was Fac Gar Fac Gar Fac Gar Fac Gar Res Gar Tes Total Allies 144 | . . 3 . . . 1 . . . 6 2 11 5 . 3 15 4 10 15 13 9 10 23 14 . Largest Group 12 | . . 3 3 3 3 1 1 . . 2 3 6 5 4 5 10 10 8 9 12 10 2 8 4 2 Highest-Rated Group 678 | . . 40 40 40 40 85 85 . . 63 79 190 213 122 210 503 503 517 451 678 485 195 441 264 264 Highest-Rated Ally 148 | . . 16 16 16 16 85 85 . . 32 32 85 85 41 85 119 119 119 137 137 137 137 137 148 148 Total Orders 75 | . . 3 . 2 . 2 . . . 1 8 7 1 . . 9 10 5 7 8 5 3 4 . . STAY 34 | . . 1 . 1 . 1 . . . . 4 4 1 . . 4 3 3 2 3 2 2 3 . . ROAM 1 | . . . . . . . . . . 1 . . . . . . . . . . . . . . . FOLLOW 33 | . . 2 . 1 . 1 . . . . 4 3 . . . 5 5 2 2 4 2 1 1 . . AID 7 | . . . . . . . . . . . . . . . . . 2 . 3 1 1 . . . . Ally Attacks 873 | . . . . . 16 5 15 . . 27 16 41 28 51 43 62 86 43 106 30 79 33 100 60 32 Total Damage 28170 | . . . . . 215 236 522 . . 477 404 690 769 2417 1880 1955 2768 1152 4004 948 3007 1014 2596 1626 1490 Kills 193 | . . . . . 2 2 9 . . 5 10 7 5 3 13 18 27 9 24 10 18 4 11 8 8 Allies Corrupted 8 | . . . . . . . . . . . . . . . . . 1 1 . . 1 1 3 1 . Allies Melted 2 | . . . . . . . . . . 1 . . . . . . . . . . . 1 . . . Intel | -11 -10 -10 -10 -9 -8 -8 -8 -8 -7 -7 -7 -7 -6 -6 -6 -6 -5 -5 -5 -5 -4 -4 -3 -3 -3 ------- Run | Yrd Mat Min Exi Min Mat Gar Mat Gar Fac Gar Fac Gar Fac Was Fac Gar Fac Gar Fac Gar Fac Gar Res Gar Tes Robot Analysis Total 3 | . 2 . . . 1 . . . . . . . . . . . . . . . . . . . . Derelict Logs Recovered 4 | . . 1 . 3 . . . . . . . . . . . . . . . . . . . . . Drone Launches . | . . . . . . . . . . . . . . . . . . . . . . . . . . Drone Recoveries . | . . . . . . . . . . . . . . . . . . . . . . . . . . Exploration | -11 -10 -10 -10 -9 -8 -8 -8 -8 -7 -7 -7 -7 -6 -6 -6 -6 -5 -5 -5 -5 -4 -4 -3 -3 -3 ------------- Run | Yrd Mat Min Exi Min Mat Gar Mat Gar Fac Gar Fac Gar Fac Was Fac Gar Fac Gar Fac Gar Fac Gar Res Gar Tes Turns Passed 26316 | 129 1096 1352 336 622 860 1857 1134 722 1365 1067 1113 1974 844 397 764 1454 994 903 888 1437 585 1451 1135 1613 224 Spaces Moved 11236 | 59 532 727 208 314 261 859 497 330 531 510 489 615 303 108 247 510 350 428 446 732 292 744 457 523 164 Core 126 | 4 . . . . . . . . . . . . . . . . . . . . . . . . 122 Treads 11110 | 55 532 727 208 314 261 859 497 330 531 510 489 615 303 108 247 510 350 428 446 732 292 744 457 523 42 Legs . | . . . . . . . . . . . . . . . . . . . . . . . . . . Wheels . | . . . . . . . . . . . . . . . . . . . . . . . . . . Hover . | . . . . . . . . . . . . . . . . . . . . . . . . . . Flight . | . . . . . . . . . . . . . . . . . . . . . . . . . . Fastest Speed 50 | 50 160 160 160 160 160 163 160 160 160 160 163 243 245 245 245 242 242 145 152 152 152 152 152 145 50 Average Speed 176 | 152 160 160 160 160 160 163 160 161 160 163 173 245 245 245 245 243 242 166 152 152 152 152 175 181 94 Slowest Speed 325 | 160 160 160 160 160 240 163 163 240 160 240 243 246 245 245 245 325 245 245 152 152 250 152 237 237 225 Overloaded Moves . | . . . . . . . . . . . . . . . . . . . . . . . . . . Propulsion Burnouts . | . . . . . . . . . . . . . . . . . . . . . . . . . . Robots Hopped . | . . . . . . . . . . . . . . . . . . . . . . . . . . Cave-ins Triggered 1 | . . . . . . . . . . . . . . . . . . . . . . . . 1 . Exploration Rate (%) 46 | 6 69 91 59 79 24 72 46 47 17 72 22 56 13 77 8 78 10 49 16 80 9 88 17 72 24 Regions Visited 25 Branch Regions 4 Pre-discovered Areas 2 | . 1 . 1 . . . . . . . . . . . . . . . . . . . . . . Known Exits Taken 9 | . . . . . 1 . 1 . 1 . 1 . . . 1 . 1 . 1 . 1 . 1 . . Unknown Exits Taken 5 | 1 1 1 1 1 . . . . . . . . . . . . . . . . . . . . . Scrap Searched 2 | . . 1 . 1 . . . . . . . . . . . . . . . . . . . . . Spaces Dug 136 | . 5 . . 7 39 16 2 1 7 10 1 12 . . 12 . 1 2 . 2 2 1 5 11 . Terrain Destroyed 824 | . 38 16 . 7 58 83 3 12 8 56 1 21 3 . 18 97 1 7 15 119 21 81 14 63 82 Melee 38 | . 3 . . . 2 9 1 . 4 . 1 3 . . 12 . . . . . . 1 2 . . Projectile 165 | . . . . . 5 . 2 1 4 . . 9 3 . 6 . 1 7 15 10 21 7 11 63 . AOE 620 | . 35 16 . 7 51 74 . 11 . 56 . 9 . . . 97 . . . 109 . 73 . . 82 Terrain Rammed . | . . . . . . . . . . . . . . . . . . . . . . . . . . Walls Destroyed . | . . . . . . . . . . . . . . . . . . . . . . . . . . Machines Disabled . | . . . . . . . . . . . . . . . . . . . . . . . . . . Actions | -11 -10 -10 -10 -9 -8 -8 -8 -8 -7 -7 -7 -7 -6 -6 -6 -6 -5 -5 -5 -5 -4 -4 -3 -3 -3 --------- Run | Yrd Mat Min Exi Min Mat Gar Mat Gar Fac Gar Fac Gar Fac Was Fac Gar Fac Gar Fac Gar Fac Gar Res Gar Tes Total 16139 | 79 681 912 211 421 627 1170 740 464 956 656 670 1007 382 193 332 650 477 580 619 995 387 985 726 1016 203 Wait 2984 | . 71 170 . 94 275 189 165 74 354 64 118 263 38 48 28 39 67 66 77 157 36 102 175 308 6 Move 11215 | 58 531 726 207 313 261 858 497 329 531 508 489 614 303 107 246 508 350 426 445 731 292 743 457 521 164 Hop . | . . . . . . . . . . . . . . . . . . . . . . . . . . Pick Up 159 | 4 7 3 1 1 11 10 6 4 . 6 1 22 4 1 1 11 6 6 10 9 1 13 3 17 1 Fast Attach 114 | 6 1 1 . . 10 3 2 4 10 3 3 7 2 . 1 6 4 10 8 5 4 1 7 13 3 Attach 61 | . 1 1 . . 3 5 4 3 1 3 2 7 1 . 1 2 1 4 2 2 1 3 2 10 2 Detach 25 | . . . . . 1 . . . . 1 2 3 . . 1 . 1 6 1 . 1 . . 8 . Swap 234 | . 6 3 2 3 11 13 8 7 8 11 12 19 2 . 2 17 15 10 9 20 10 14 13 17 2 Drop 197 | . 2 4 1 1 14 12 9 9 11 5 4 13 4 3 . 12 16 17 15 11 3 10 9 9 3 Fire 1026 | 11 34 2 . 4 39 66 44 25 36 50 35 51 28 34 35 43 17 35 50 60 39 98 58 112 20 Melee 91 | . 23 1 . 2 2 14 5 3 5 5 3 8 . . 17 . . . . . . 1 2 . . Ram 2 | . . . . . . . . . . . . . . . . . . . . . . . . . 2 Kick . | . . . . . . . . . . . . . . . . . . . . . . . . . . Crush 8 | . 5 1 . . . . . . . . 1 . . . . . . . 1 . . . . . . Escape Stasis 13 | . . . . . . . . . . . . . . . . 12 . . . . . . . 1 . Rewire 1 | . . . . . . . . . . . . . . . . . . . 1 . . . . . . Trap 9 | . . . . 3 . . . 6 . . . . . . . . . . . . . . . . . Miscellaneous . | . . . . . . . . . . . . . . . . . . . . . . . . . . Route ------- -11/Scrapyard -10/Materials (discovered 2 exits: [*Mat] / *Min) -10/Mines (discovered 2 exits: [*Mat] / *Exi) -10/Exiles -9/Mines (discovered 2 exits: *Mat x2) -8/Materials (discovered 4 exits: *Fac x2 / Sto / Gar) -8/Garrison (discovered 4 exits: *Fac x3 / *Mat) -8/Materials (discovered 2 exits: *Fac / Gar) -8/Garrison (discovered 3 exits: *Fac x3) -7/Factory (discovered 3 exits: *Low x2 / Gar) -7/Garrison (discovered 4 exits: *Fac x4) -7/Factory (discovered 2 exits: *Low / Gar) -7/Garrison (discovered 3 exits: *Fac x3) -6/Factory -6/Waste -6/Factory -6/Garrison (discovered 2 exits: *Fac x2) -5/Factory -5/Garrison (discovered 3 exits: *Fac x3) -5/Factory (discovered 3 exits: *Upp x2 / Gar) -5/Garrison (discovered 2 exits: *Fac x2) -4/Factory (discovered 5 exits: *Res / Upp x2 / Arm / Gar) -4/Garrison (discovered 4 exits: *Res x3 / [*Fac]) -3/Research -3/Garrison (discovered 3 exits: [*Tes x3]) -3/Testing History --------- Turn | Location | Event 24 | -11/Scrapyard | Discovered new exit (range 16) 130 | -11/Scrapyard | Entered Materials 321 | -10/Materials | Build established: Mutant 676 | -10/Materials | Discovered new exit (range 6) 848 | -10/Materials | Core integrity fell below 50% 1078 | -10/Materials | Discovered new exit (range 11) 1226 | -10/Materials | Entered Mines 1309 | -10/Mines | Received a Rocket Launcher from a helpful Derelict 1414 | -10/Mines | Assisted by bots powering up and referring to "LRC-V3" 1444 | -10/Mines | Discovered new exit (range 7) 1617 | -10/Mines | Met a Derelict who couldn't figure out how to use a Trap Extractor 2285 | -10/Mines | Deemed a non-threat by the Exiles lab entrance 2285 | -10/Mines | Discovered new exit (range 5) 2578 | -10/Mines | Entered Exiles 2578 | -10/Exiles | Accompanied by 3 allies 2620 | -10/Exiles | Met 8R-AWN 2650 | -10/Exiles | Met EX-HEX 2692 | -10/Exiles | Met EX-BIN 2711 | -10/Exiles | Aligned with FarCom system 2713 | -10/Exiles | Given EX-Vault access code 2749 | -10/Exiles | Opened EX-Vault 2758 | -10/Exiles | Found Gui. Plasma Cannon 2791 | -10/Exiles | Warned to stay clear of 0b10 Research branches 2837 | -10/Exiles | Met EX-DEC 2844 | -10/Exiles | Learned location of Zion (-7) 2893 | -10/Exiles | Discovered new exit (range 10) 2914 | -10/Exiles | Left Exiles lab with Gui. Plasma Cannon 2914 | -10/Exiles | Entered Mines 2914 | -9/Mines | Accompanied by 3 allies 2942 | -9/Mines | Met a Derelict bent on vengeance 2989 | -9/Mines | Learned location of 1 exit from Materials 3086 | -9/Mines | Learned Materials terminal intel 3147 | -9/Mines | Found a hidden stash of uninstalled traps 3485 | -9/Mines | Discovered new exit (range 5) 3496 | -9/Mines | Discovered new exit (range 14) 3536 | -9/Mines | Entered Materials 3536 | -8/Materials | Accompanied by 3 allies 3536 | -8/Materials | Evolved 4 slots: Propulsion x1, Utility x2, Weapon x1 3537 | -8/Materials | Identified exit to Storage 3538 | -8/Materials | Identified exit to Factory 3539 | -8/Materials | Loaded intel: 11 terminal locations 4016 | -8/Materials | Build established: Scavenger-Skirmisher 4297 | -8/Materials | Discovered exit to Factory (range 16) 4396 | -8/Materials | Identified exit to Garrison 4396 | -8/Materials | Entered Garrison 4419 | -8/Garrison | Triggered checkpoint 4496 | -8/Garrison | Triggered checkpoint 4566 | -8/Garrison | Spotted B-75 Beast 4749 | -8/Garrison | Triggered checkpoint 4816 | -8/Garrison | Triggered checkpoint 4885 | -8/Garrison | Discovered exit to Factory (range 11) 4922 | -8/Garrison | Triggered checkpoint 5007 | -8/Garrison | Garrison Relay disabled 5029 | -8/Garrison | Build established: Skirmisher 5176 | -8/Garrison | Triggered checkpoint 5273 | -8/Garrison | Discovered exit to Factory (range 8) 5315 | -8/Garrison | Phase Generator disabled 5342 | -8/Garrison | Garrison Relay disabled 5402 | -8/Garrison | Installed Relay Interface Framework 5656 | -8/Garrison | Discovered exit to Factory (range 8) 5656 | -8/Garrison | Discovered exit to Factory (range 62) 5656 | -8/Garrison | Discovered exit to Factory (range 79) 5656 | -8/Garrison | Discovered new exit (range 30) 5980 | -8/Garrison | Assimilated Beast 3a with formatsys_high 6196 | -8/Garrison | Build established: Mutant 6253 | -8/Garrison | Entered Materials 6253 | -8/Materials | Accompanied by 1 ally 6485 | -8/Materials | Repaired Arm. Treads 7013 | -8/Materials | Discovered exit to Factory (range 11) 7021 | -8/Materials | Build established: Skirmisher 7053 | -8/Materials | First assault squad dispatched 7170 | -8/Materials | Garrison activated, responded to threat 7387 | -8/Materials | Identified exit to Garrison 7387 | -8/Materials | Entered Garrison 7415 | -8/Garrison | Discovered exit to Factory (range 52) 7415 | -8/Garrison | Discovered exit to Factory (range 71) 7415 | -8/Garrison | Discovered exit to Factory (range 49) 7457 | -8/Garrison | Triggered checkpoint 7493 | -8/Garrison | Build established: Scavenger-Skirmisher 7578 | -8/Garrison | Expanded RIF knowledge: Coupler Efficiency 7860 | -8/Garrison | Expanded RIF knowledge: Hotswap 7942 | -8/Garrison | Triggered checkpoint 7988 | -8/Garrison | Garrison Relay disabled 8109 | -8/Garrison | Entered Factory 8109 | -7/Factory | Evolved 2 slots: Utility x2 8110 | -7/Factory | Identified exit to Lower Caves 9309 | -7/Factory | Garrison activated, responded to threat 9426 | -7/Factory | Garrison activated, responded to threat 9471 | -7/Factory | Identified exit to Garrison 9474 | -7/Factory | Entered Garrison 9592 | -7/Garrison | Triggered checkpoint 9626 | -7/Garrison | Garrison Relay disabled 9645 | -7/Garrison | Triggered checkpoint 9766 | -7/Garrison | Discovered new exit (range 5) 9922 | -7/Garrison | Triggered checkpoint 9998 | -7/Garrison | Build established: Bothacker-Skirmisher 10046 | -7/Garrison | Triggered checkpoint 10099 | -7/Garrison | Garrison Relay disabled 10179 | -7/Garrison | Expanded RIF knowledge: Autooverride 10229 | -7/Garrison | Expanded RIF knowledge: Structural Interface 10240 | -7/Garrison | Discovered new exit (range 3) 10262 | -7/Garrison | Discovered new exit (range 75) 10262 | -7/Garrison | Discovered new exit (range 48) 10262 | -7/Garrison | Discovered new exit (range 8) 10262 | -7/Garrison | Discovered new exit (range 42) 10355 | -7/Garrison | Triggered checkpoint 10404 | -7/Garrison | Build established: Bothacker-Mutant 10404 | -7/Garrison | Garrison Relay disabled 10457 | -7/Garrison | Rescued a captive Derelict 10480 | -7/Garrison | Triggered checkpoint 10541 | -7/Garrison | Entered Factory 10541 | -7/Factory | Accompanied by 2 allies 10693 | -7/Factory | Discovered exit to Lower Caves (range 6) 10707 | -7/Factory | Build established: Botlord-Mutant 11199 | -7/Factory | Build established: Bothacker-Skirmisher 11374 | -7/Factory | Repaired Broken Imp. Trap Extractor 11553 | -7/Factory | Garrison activated, responded to threat 11654 | -7/Factory | Identified exit to Garrison 11654 | -7/Factory | Entered Garrison 11704 | -7/Garrison | Triggered checkpoint 11786 | -7/Garrison | Expanded RIF knowledge: Autoassimilate 11821 | -7/Garrison | Garrison Relay disabled 11896 | -7/Garrison | Discovered new exit (range 38) 11896 | -7/Garrison | Discovered new exit (range 47) 11896 | -7/Garrison | Discovered new exit (range 69) 12052 | -7/Garrison | Triggered checkpoint 12279 | -7/Garrison | Build established: Botlord-Skirmisher 12369 | -7/Garrison | Gui. Plasma Cannon suddenly broke down 12539 | -7/Garrison | Spotted B-75 Beast 12542 | -7/Garrison | Assimilated Beast 4a with formatsys_high 12809 | -7/Garrison | Core integrity fell below 50% 12880 | -7/Garrison | Rescued a captive Derelict 12881 | -7/Garrison | Rescued a captive Derelict 12916 | -7/Garrison | Triggered checkpoint 13220 | -7/Garrison | Garrison Relay disabled 13421 | -7/Garrison | Triggered checkpoint 13424 | -7/Garrison | Triggered checkpoint 13488 | -7/Garrison | Triggered checkpoint 13628 | -7/Garrison | Entered Factory 13628 | -6/Factory | Accompanied by 3 allies 13628 | -6/Factory | Evolved 2 slots: Propulsion x1, Utility x1 14245 | -6/Factory | Fabricated Imp. Proton Missile Launcher (x1) 14406 | -6/Factory | Fabricated A-15 Conveyor? 14472 | -6/Factory | Sucked down chute 14472 | -6/Factory | Entered Waste 14487 | -6/Waste | EMP discharged 14491 | -6/Waste | Spotted C-40 Crusher 14543 | -6/Waste | Spotted C-40 Crusher 14546 | -6/Waste | Spotted C-40 Crusher 14548 | -6/Waste | Destroyed C-40 Crusher 14549 | -6/Waste | Spotted C-40 Crusher 14572 | -6/Waste | 4 allies followed down the chute 14587 | -6/Waste | EMP discharged 14587 | -6/Waste | System corruption reached 10% 14597 | -6/Waste | Allies destroyed C-40 Crusher 14632 | -6/Waste | Spotted C-40 Crusher 14635 | -6/Waste | Spotted C-40 Crusher 14664 | -6/Waste | Allies destroyed C-40 Crusher 14682 | -6/Waste | Allies destroyed C-40 Crusher 14687 | -6/Waste | EMP discharged 14787 | -6/Waste | EMP discharged 14787 | -6/Waste | System corruption reached 30% 14796 | -6/Waste | Discovered new exit (range 10) 14869 | -6/Waste | Entered Factory 14869 | -6/Factory | Accompanied by 3 allies 14914 | -6/Factory | Spotted B-75 Beast 14916 | -6/Factory | Assimilated Beast 5a with formatsys_high 14941 | -6/Factory | Noticed a derelict Sapper rigging charges 15573 | -6/Factory | Garrison activated, responded to threat 15617 | -6/Factory | Identified exit to Garrison 15633 | -6/Factory | Entered Garrison 15633 | -6/Garrison | Accompanied by 2 allies 15665 | -6/Garrison | Triggered checkpoint 15667 | -6/Garrison | Assimilated ARC 5a with formatsys_deep 15697 | -6/Garrison | Garrison Relay disabled 15750 | -6/Garrison | Build established: Botlord-Mutant 15843 | -6/Garrison | Spotted B-75 Beast 15844 | -6/Garrison | Autoassimilated Beast 5b with RIF 15863 | -6/Garrison | Triggered checkpoint 15875 | -6/Garrison | Triggered checkpoint 15915 | -6/Garrison | Triggered checkpoint 16025 | -6/Garrison | Triggered checkpoint 16089 | -6/Garrison | Garrison Relay disabled 16143 | -6/Garrison | Build established: Botlord-Skirmisher 16183 | -6/Garrison | Spotted Striker 16183 | -6/Garrison | Spotted Striker 16214 | -6/Garrison | Destroyed Striker 16222 | -6/Garrison | Allies destroyed Striker 16251 | -6/Garrison | Lost 3 allies 16338 | -6/Garrison | Garrison Relay disabled 16404 | -6/Garrison | Rewired Executioner 16407 | -6/Garrison | Rewired Executioner 16462 | -6/Garrison | Expanded RIF knowledge: Program Shield 16493 | -6/Garrison | Discovered new exit (range 9) 16623 | -6/Garrison | Phase Generator disabled 16827 | -6/Garrison | Triggered checkpoint 16831 | -6/Garrison | Garrison Relay disabled 16989 | -6/Garrison | Discovered new exit (range 11) 17087 | -6/Garrison | Entered Factory 17087 | -5/Factory | Accompanied by 10 allies 17087 | -5/Factory | Evolved 2 slots: Utility x2 17182 | -5/Factory | Lost 3 allies 17987 | -5/Factory | First assault squad dispatched 18081 | -5/Factory | Identified exit to Garrison 18081 | -5/Factory | Entered Garrison 18081 | -5/Garrison | Accompanied by 5 allies 18146 | -5/Garrison | Found Corrupted Prototype Device 18146 | -5/Garrison | Identified Adv. Kinecellerator 18350 | -5/Garrison | Triggered checkpoint 18474 | -5/Garrison | Spotted B-75 Beast 18477 | -5/Garrison | Triggered checkpoint 18483 | -5/Garrison | Triggered checkpoint 18485 | -5/Garrison | Triggered checkpoint 18514 | -5/Garrison | Allies destroyed B-75 Beast 18524 | -5/Garrison | Lost 3 allies 18568 | -5/Garrison | Expanded RIF knowledge: Signal Jamming 18592 | -5/Garrison | Discovered new exit (range 10) 18611 | -5/Garrison | Triggered checkpoint 18643 | -5/Garrison | Garrison Relay disabled 18674 | -5/Garrison | Found embedded Infiltrators 18685 | -5/Garrison | Discovered new exit (range 14) 18685 | -5/Garrison | Discovered new exit (range 79) 18685 | -5/Garrison | Discovered new exit (range 48) 18854 | -5/Garrison | Garrison Relay disabled 18984 | -5/Garrison | Entered Factory 18984 | -5/Factory | Accompanied by 6 allies 19101 | -5/Factory | Discovered new exit (range 20) 19180 | -5/Factory | Found Rocket Array 19239 | -5/Factory | Identified exit to Upper Caves 19284 | -5/Factory | First assault squad dispatched 19368 | -5/Factory | Found Prototype Processor 19368 | -5/Factory | Identified Exp. Core Analyzer 19372 | -5/Factory | Found Corrupted Prototype Processor 19372 | -5/Factory | Identified Exp. Targeting Computer 19386 | -5/Factory | Lost 5 allies 19393 | -5/Factory | Found Adv. Kinecellerator 19607 | -5/Factory | Lost 6 allies 19869 | -5/Factory | Identified exit to Garrison 19872 | -5/Factory | Entered Garrison 19872 | -5/Garrison | Accompanied by 4 allies 19908 | -5/Garrison | Triggered checkpoint 20014 | -5/Garrison | Garrison Relay disabled 20115 | -5/Garrison | Spotted B-75 Beast 20118 | -5/Garrison | Assimilated Beast 6a with formatsys_high 20120 | -5/Garrison | Triggered checkpoint 20168 | -5/Garrison | Triggered checkpoint 20233 | -5/Garrison | Spotted B-75 Beast 20234 | -5/Garrison | Assimilated Beast 6b with formatsys_high 20265 | -5/Garrison | Garrison Relay disabled 20292 | -5/Garrison | Heavy support dispatched to Factory 20473 | -5/Garrison | Phase Generator disabled 20566 | -5/Garrison | Triggered checkpoint 20854 | -5/Garrison | H-XX Assembler disabled 20897 | -5/Garrison | Discovered new exit (range 11) 20914 | -5/Garrison | Triggered checkpoint 20932 | -5/Garrison | Garrison Relay disabled 21091 | -5/Garrison | Triggered checkpoint 21167 | -5/Garrison | Garrison Relay disabled 21210 | -5/Garrison | Triggered checkpoint 21219 | -5/Garrison | Discovered new exit (range 11) 21231 | -5/Garrison | Rescued a captive Derelict 21233 | -5/Garrison | Rescued a captive Derelict 21309 | -5/Garrison | Entered Factory 21309 | -4/Factory | Accompanied by 9 allies 21309 | -4/Factory | Evolved 2 slots: Utility x2 21435 | -4/Factory | Found Quantum Capacitor 21511 | -4/Factory | Identified exit to Upper Caves 21511 | -4/Factory | Identified exit to Armory 21559 | -4/Factory | First assault squad dispatched 21680 | -4/Factory | Lost 5 allies 21743 | -4/Factory | Discovered new exit (range 14) 21790 | -4/Factory | Lost 9 allies 21894 | -4/Factory | Identified exit to Garrison 21894 | -4/Factory | Entered Garrison 21942 | -4/Garrison | Expanded RIF knowledge: Patrol Navigation 21980 | -4/Garrison | Triggered checkpoint 21984 | -4/Garrison | Garrison Relay disabled 22058 | -4/Garrison | Triggered checkpoint 22100 | -4/Garrison | Discovered new exit (range 3) 22238 | -4/Garrison | Spotted B-86 Titan 22337 | -4/Garrison | Destroyed B-86 Titan 22402 | -4/Garrison | Triggered checkpoint 22418 | -4/Garrison | Triggered checkpoint 22434 | -4/Garrison | Triggered checkpoint 22444 | -4/Garrison | Triggered checkpoint 22483 | -4/Garrison | Lost 3 allies 22568 | -4/Garrison | Discovered new exit (range 15) 22579 | -4/Garrison | Build established: Botlord-Gunner 22584 | -4/Garrison | Gui. Plasma Cannon suddenly broke down 22700 | -4/Garrison | Garrison Relay disabled 22771 | -4/Garrison | Found embedded Infiltrators 22863 | -4/Garrison | Phase Generator disabled 22942 | -4/Garrison | Triggered checkpoint 22977 | -4/Garrison | Garrison Relay disabled 23009 | -4/Garrison | Build established: Botlord-Skirmisher 23098 | -4/Garrison | Discovered new exit (range 14) 23120 | -4/Garrison | Heavy support dispatched to Research 23252 | -4/Garrison | Garrison Relay disabled 23316 | -4/Garrison | Discovered new exit (range 15) 23345 | -4/Garrison | Entered Research 23345 | -3/Research | Accompanied by 2 allies 23345 | -3/Research | Evolved 2 slots: Utility x2 23463 | -3/Research | Found Prototype Processor 23463 | -3/Research | Identified Exp. Signal Interpreter 23643 | -3/Research | Build established: Botlord-Tank 23821 | -3/Research | Found Prototype Hackware 23821 | -3/Research | Identified Exp. Hacking Suite 23845 | -3/Research | First assault squad dispatched 23904 | -3/Research | Assimilated ARC 8a with formatsys_deep 24026 | -3/Research | Assimilated ARC 8b with formatsys_deep 24089 | -3/Research | Lost 13 allies 24113 | -3/Research | Build established: Botlord-Skirmisher 24249 | -3/Research | Lost 4 allies 24480 | -3/Research | Identified exit to Garrison 24480 | -3/Research | Entered Garrison 24503 | -3/Garrison | Discovered new exit (range 37) 24503 | -3/Garrison | Discovered new exit (range 75) 24503 | -3/Garrison | Discovered new exit (range 72) 24727 | -3/Garrison | QS Assembler disabled 24783 | -3/Garrison | Found Prototype Processor 24783 | -3/Garrison | Identified Exp. Melee Analysis Suite 24894 | -3/Garrison | Triggered checkpoint 24945 | -3/Garrison | Garrison Relay disabled 25101 | -3/Garrison | Crushed by falling debris 25102 | -3/Garrison | System corruption reached 10% 25129 | -3/Garrison | Triggered checkpoint 25132 | -3/Garrison | Lost 3 parts (1n2u) 25146 | -3/Garrison | Triggered checkpoint 25198 | -3/Garrison | Garrison Relay disabled 25250 | -3/Garrison | Spotted B-86 Titan 25253 | -3/Garrison | Triggered checkpoint 25260 | -3/Garrison | Destroyed B-86 Titan 25299 | -3/Garrison | Lost 7 allies 25356 | -3/Garrison | Triggered checkpoint 25492 | -3/Garrison | Triggered checkpoint 25660 | -3/Garrison | Found Relay Coupler [Proto] 25664 | -3/Garrison | Found Relay Coupler [Proto] 25667 | -3/Garrison | Found Relay Coupler [Proto] 25670 | -3/Garrison | Found Relay Coupler [Proto] 25703 | -3/Garrison | Spotted B-75 Beast 25709 | -3/Garrison | Spotted B-75 Beast 25715 | -3/Garrison | Rewired B-90 Cyclops 25720 | -3/Garrison | Allies destroyed B-75 Beast 25728 | -3/Garrison | Destroyed B-75 Beast 25740 | -3/Garrison | Build established: Botlord-Tank 25746 | -3/Garrison | Rewired B-86 Titan 25817 | -3/Garrison | Expanded RIF knowledge: Coupler Efficiency 25838 | -3/Garrison | Triggered checkpoint 25897 | -3/Garrison | Spotted Executioner 25897 | -3/Garrison | Spotted Executioner 26093 | -3/Garrison | Entered Testing 26093 | -3/Testing | Accompanied by 2 allies 26094 | -3/Testing | Maximum security lockdown engaged 26153 | -3/Testing | Scanned by Researcher 26181 | -3/Testing | Found Prototype Protection 26183 | -3/Testing | Garrison activated, responded to threat 26185 | -3/Testing | Found Prototype Protection 26185 | -3/Testing | Identified Med. Regenerative Plating 26191 | -3/Testing | Found Med. Regenerative Plating 26214 | -3/Testing | Spotted Executioner 26251 | -3/Testing | Released all parts (12) 26257 | -3/Testing | Core integrity fell below 50% 26257 | -3/Testing | System corruption reached 30% 26263 | -3/Testing | Destroyed 10 combat bots 26280 | -3/Testing | Lost 9 parts (2n5u2w) 26281 | -3/Testing | Core integrity fell below 20% 26317 | -3/Testing | Destroyed by S-43 Plague with Heavy Machine Gun Last Messages --------------- 26284_ C-30 ARC bursts open, deploying its payload. 26284_ G-73 Enforcer unfolds itself. 26284_ B-74 Champion unfolds itself. 26284_ G-67 Veteran unfolds itself. 26284_ M-36 Artificer unfolds itself. 26287_ Penetrated by Slug. 26287_ Slug penetrates Earth. 26289_ The unstable cave ceiling collapses. 26289_ C-30 ARC bursts open, deploying its payload. 26289_ G-73 Enforcer unfolds itself. 26289_ G-67 Veteran unfolds itself. 26289_ B-74 Champion unfolds itself. 26289_ G-67 Veteran unfolds itself. 26289_ E-15 Imp unfolds itself. 26291_ E-15 Imp destroyed. 26293_ RIF reveals location of hidden door. 26294_ ALERT: Assault forces dispatched. 26297_ RIF reveals location of hidden door. 26302_ WXXDZRUMK:T|VX#6,FC,OQ 26305_ Slammed into W-44 Eye. Map ----- +----------------------------------------------------+ | ?????????????????????????????????????????????????? | | ?????????????????????????????????????????????????? | | ?????????????????????????????????????????????????? | | ?????????????????????????????????????????????????? | | ?????????????????????????????????????????????????? | | ?????????????????????????????????????????????????? | | ?????????????????????????????????????????????????? | | ?????????????????????????????????????????????????? | | ?????????????????????????????????????????????????? | | ?????????????????????????????????????????????????? | | ?????????????????????????????????????????????????? | | ?????????????????????????????????????????????????? | | ?????????????????????????????????????????????????? | | ?????????????????????????????????????????????????? | | ####???????????????#####?#######?????????????????? | | #??????????#???? #?????????????????? | | #??????????# ???" """ #?????????????????? | | =#??????????# ??" """" #?????????????????? | | #??????????# """ """ #?????????????????? | | #??????????# #?????????????????? | | #??????????# #?????????????????? | | #??????????# #?????????????????? | | #??????????# #?????????????????? | | ####??????????# #?????????????????? | | ###################+#+######+#?????????????????? | | % %p @ +?????????????????? | | ############ ##### #?????????????????? | | #??????????# #???????????????????????? | | ###??????????+ s #???????????????????????? | | ?????????????# ###+####???????????????????????? | | ?????????????# #??????????????????????????????? | | ?????????????# #??????????????????????????????? | | ?????????????# s#??????????????????????????????? | | ?????????????# #??????????????????????????????? | | ?????????????# #??????????????????????????????? | | ?????????????# ss#??????????????????????????????? | | ?????????????# #??????????????????????????????? | | ?????????????# #??????????????????????????????? | | ?????????????# #??????????????????????????????? | | ?????????????# / ??????????????????????????????? | | #????????????? ???????????????????????????????? | | #????????????????????????????????????????????????? | | #????????????????????????????????????????????????? | | #????????????????????????????????????????????????? | | #????????????????????????????????????????????????? | | #????????????????????????????????????????????????? | | #????????????????????????????????????????????????? | | #????????????????????????????????????????????????? | | #????????????????????????????????????????????????? | | #????????????????????????????????????????????????? | +----------------------------------------------------+ Best States ------------- Heat Dissipation 136 Energy Generation 25 Energy Capacity 350 Matter Stores 300 Matter Capacity 300 Sight Range 20 Terrain Scan Density 10 Armor Coverage 1200 Phase Shifting 15 Evasion (%) 55 Core Analysis 8 Recoil Reduction 4 Kinecelleration 50 Offensive Hacking 16 Relay Coupler Types 8 Relay Coupler Value 174 Authchip Count 1 Trap Extractor Capacity 8 Item Schematics ----------------- Stealth Drone Bay | -3/Testing | Archive Robot Schematics ------------------ S-43 Plague | -3/Testing | Archive Fabricated ------------ Imp. Proton Missile Launcher | x1 | -6/Factory | Preloaded A-15 Conveyor | x1 | -6/Factory | Preloaded Alien Tech Used ----------------- None Achievements -------------- Pwned Challenges ------------ None Game ------ Seed RainbowAmuletReplicator Manual? 0 Play Time 04:30:46 Cumulative 255.5 hours Start 2024.08.20 @ 18:17:32 End 2024.08.22 @ 18:21:43 Sessions 5 Manual Loads 0 Difficulty Rogue Special Mode None Game No. 129 Rogue 129 Adventurer 0 Explorer 0 Win Type - Total 8 Types 4/1/3/0/0/0/0/0/0 Lore% 75 Gallery% 85 Achievement% 70 Wizard Run 0 Options --------- Layout 0 ASCII 0 Keyboard 0 Movement Mouse Keybinds 0 Fullscreen 2 Font 18/SmallcapsGlow Map View 76x50 Zoom Use 0% Tactical HUD 1 Map Filters NONE Filters NONE Steam 1 RUN: 208ec022-cb33-4555-8972-ca36012d1fd0